bitfinex/quotes_SOLUSD_20260304
["timestamp","ask_amount","ask_price","bid_price","bid_amount"]
[1772635014231,3.69383402,90.147,89.993,4.4817771]
[1772635014430,0.03608133,90.148,89.992,261.13432303]
[1772635014431,0.28432314,90.089,89.996,4.4817771]
[1772635014633,15.40008745,90.06,89.996,4.4817771]
[1772635014838,15.40008745,90.05,89.996,4.4817771]
[1772635015047,0.28432314,90.086,89.996,4.4817771]
[1772635015254,0.14216157,90.125,90.003,0.14216157]
[1772635015550,4.82477569,90.137,90.011,0.14216157]
[1772635015859,38.82805826,90.141,90.011,8.80293285]
[1772635016030,15.40008745,90.13,90.011,8.80293285]
[1772635016230,15.88257079,90.14,90.011,8.80293285]
[1772635016442,15.40008745,90.14,90.011,8.80293285]
[1772635016654,15.40008745,90.14,90.015,8.80293285]
[1772635016830,15.40008745,90.12,90.015,8.80293285]
[1772635017029,0.48248334,90.14,90.015,8.80293285]
[1772635017258,15.40008745,90.1,90.007,0.28432314]
[1772635017449,0.28432314,90.123,90.024,4.25632154]
[1772635017752,15.40008745,90.07,90.009,4.25632154]
[1772635017932,3.69383402,90.1,90.009,4.25632154]
[1772635018254,15.40008745,90.07,90.012,4.25632154]
[1772635018453,15.40008745,90.05,90.008,11.11012354]
[1772635018629,15.40008745,90.06,90.008,38.8854324]
[1772635018954,0.48248334,90.089,90.009,4.25632154]
[1772635019137,15.40008745,90.06,90.009,4.25632154]
[1772635019336,15.40008745,90.06,90.01,38.88456838]
[1772635019636,0.28432314,90.079,90.014,4.25632154]
[1772635019840,0.76680648,90.079,90.014,4.25632154]
[1772635020054,15.40008745,90.07,90.014,4.25632154]
[1772635020355,227.4694303,90.122,90.016,4.25632154]
[1772635020356,15.40008745,90.08,90.016,4.25632154]
[1772635020533,15.40008745,90.07,90.016,4.25632154]
[1772635020736,15.40008745,90.04,90.01,11.10987668]
[1772635020957,15.40008745,90.07,90.011,4.25632154]
[1772635021259,15.40008745,90.04,89.995,11.11172842]
[1772635021431,15.40008745,90.04,89.995,15.36804996]
[1772635021633,15.40008745,90.05,89.995,43.14737103]
[1772635021834,15.40008745,90.01,89.96,4.25632154]
[1772635022043,0.28432314,90.009,89.941,4.25632154]
[1772635022237,15.40008745,90.01,89.975,11.11419838]
[1772635022445,15.40008745,90.02,89.974,19.97135217]
[1772635022751,15.40008745,90.03,89.975,4.25632154]
[1772635022951,15.40008745,90.04,89.977,4.25632154]
[1772635023141,15.40008745,90.01,89.974,19.97135217]
[1772635023346,0.28432314,90.028,89.974,19.97135217]
[1772635023651,15.40008745,90.02,89.974,19.97135217]
[1772635024057,11.10753201,90.029,89.974,47.75715695]
[1772635024256,15.40008745,90.06,89.978,4.39848311]
[1772635024435,0.48248334,90.08,90.0,4.25632154]
[1772635024436,15.40008745,90.07,90.0,4.25632154]
[1772635024635,15.40008745,90.07,90.006,4.25632154]
[1772635024839,15.40008745,90.04,89.988,4.25632154]
[1772635025257,0.48248334,90.058,89.988,4.25632154]
[1772635025431,11.10383193,90.059,89.99,4.25632154]
[1772635025630,0.48248334,90.074,89.989,38.89364255]
[1772635025631,26.50009855,90.09,90.001,0.28432314]
[1772635025837,26.50009855,90.09,89.989,216.69315135]
[1772635025838,11.09656228,90.118,90.02,4.25632154]
[1772635026142,11.09645945,90.119,90.05,4.25632154]
[1772635026341,11.09645945,90.119,90.001,3.69383402]
[1772635026537,11.09645945,90.119,89.992,3.69383402]
[1772635026538,15.40008745,90.09,90.02,4.25632154]
[1772635026753,15.40008745,90.09,90.036,4.25632154]
[1772635026934,0.48248334,90.11,90.044,4.25632154]
[1772635026935,15.88257079,90.11,90.044,4.25632154]
[1772635027137,15.88257079,90.11,90.011,3.69383402]
[1772635027138,15.40008745,90.1,90.045,4.25632154]
[1772635027338,15.40008745,90.09,90.045,4.25632154]
[1772635027537,15.40008745,90.09,90.028,4.25632154]
[1772635028457,0.14216157,90.107,90.028,4.25632154]
[1772635028632,38.84184708,90.109,90.038,4.25632154]
[1772635028838,11.09701522,90.115,90.048,4.25632154]
[1772635029033,15.40008745,90.1,90.048,4.25632154]
[1772635029233,15.40008745,90.09,90.024,4.25632154]
[1772635029454,3.69383402,90.126,90.026,4.25632154]
[1772635029455,11.09947257,90.095,90.026,4.25632154]
[1772635029778,15.40008745,90.09,90.026,4.25632154]
[1772635029961,44.37879814,90.134,90.025,38.87808941]
[1772635029962,0.48248334,90.141,90.032,4.25632154]
[1772635030262,15.40008745,90.13,90.048,4.25632154]
[1772635030435,15.40008745,90.13,90.058,4.25632154]
[1772635030638,15.40008745,90.11,90.028,3.69383402]
[1772635030854,0.48248334,90.109,90.041,4.25632154]
[1772635031036,15.40008745,90.11,90.041,4.25632154]
[1772635031441,15.40008745,90.11,90.043,4.25632154]
[1772635031640,0.48248334,90.138,90.059,4.25632154]
[1772635031856,51.22987656,90.172,90.069,4.25632154]
[1772635031857,15.40008745,90.13,90.069,4.25632154]
[1772635032160,0.48248334,90.173,90.085,4.25632154]
[1772635032344,0.48248334,90.208,90.109,4.25632154]
[1772635032537,0.48248334,90.208,90.082,4.82477569]
[1772635032538,11.08659741,90.199,90.133,0.14216157]
[1772635032738,15.40008745,90.19,90.139,4.25632154]
[1772635032939,5.75317802,90.232,90.146,0.28432314]
[1772635033244,11.08070074,90.247,90.178,4.25632154]
[1772635033440,44.30257819,90.289,90.067,4.82477569]
[1772635033441,11.07530097,90.291,90.195,4.3454117]
[1772635033642,15.40008745,90.29,90.197,4.3454117]
[1772635033858,15.40008745,90.29,90.209,0.14216157]
[1772635034155,15.40008745,90.29,90.231,4.06108856]
[1772635034339,4.31317048,90.239,90.18,4.06108856]
[1772635034538,15.40008745,90.26,90.189,0.28432314]
[1772635034750,4.31317048,90.269,90.193,4.20325013]
[1772635035267,4.31317048,90.289,90.22,0.14216157]
[1772635035452,11.07800019,90.269,90.22,4.06108856]
[1772635035642,38.77300068,90.269,90.211,11.08505928]
[1772635036161,3.69383402,90.303,90.211,11.08505928]
[1772635036162,4.31317048,90.316,90.212,4.06108856]
[1772635036345,15.40008745,90.28,90.215,4.06108856]
[1772635036545,19.71325793,90.28,90.218,0.14216157]
[1772635036742,15.40008745,90.29,90.225,4.06108856]
[1772635036942,215.90858761,90.316,90.225,4.06108856]
[1772635036943,15.40008745,90.28,90.225,4.06108856]
[1772635037340,4.31317048,90.279,90.208,4.3454117]
[1772635037562,15.40008745,90.27,90.21,4.06108856]
[1772635037940,4.31317048,90.275,90.21,4.06108856]
[1772635038141,4.31317048,90.292,90.218,4.06108856]
[1772635038337,38.76355339,90.291,90.228,4.46348436]
[1772635038571,15.40008745,90.27,90.228,4.46348436]
[1772635038866,4.17900535,90.29,90.228,4.46348436]
[1772635038867,15.40008745,90.29,90.228,4.46348436]
[1772635039041,11.07530097,90.291,90.228,4.46348436]
[1772635039246,11.07530097,90.291,90.238,4.46348436]
[1772635039774,11.07431975,90.299,90.247,0.14216157]
[1772635040063,11.07431975,90.299,90.239,38.78589079]
[1772635040064,43.07640132,90.33,90.266,4.46348436]
[1772635040271,43.07640132,90.33,90.268,4.46348436]
[1772635040272,27.67631387,90.33,90.268,4.46348436]
[1772635040468,88.54001907,90.355,90.268,4.46348436]
[1772635040469,15.44736531,90.35,90.268,4.46348436]
[1772635040667,4.17900535,90.391,90.282,3.69383402]
[1772635040968,4.17900535,90.389,90.295,5.10909883]
[1772635041167,15.44736531,90.38,90.295,5.10909883]
[1772635041352,4.17900535,90.389,90.295,0.28432314]
[1772635041553,15.44736531,90.36,90.287,0.28432314]
[1772635041752,4.17900535,90.385,90.292,3.97815716]
[1772635042167,143.80053756,90.403,90.292,3.97815716]
[1772635042168,11.06157981,90.403,90.292,3.97815716]
[1772635042369,44.22686888,90.443,90.292,3.97815716]
[1772635042370,15.44736531,90.42,90.293,0.28432314]
[1772635042569,15.44736531,90.41,90.316,9.23930829]
[1772635042747,15.44736531,90.4,90.336,4.13020946]
[1772635043055,15.44736531,90.4,90.355,0.14216157]
[1772635043241,15.44736531,90.39,90.354,4.13020946]
[1772635043440,15.44736531,90.39,90.315,3.69383402]
[1772635043441,15.44736531,90.39,90.33,4.13020946]
[1772635043642,15.44736531,90.4,90.346,4.13020946]
[1772635043848,11.06329309,90.389,90.347,11.06843614]
[1772635044049,48.43787624,90.418,90.305,44.29384778]
[1772635044050,15.44736531,90.39,90.339,11.06930674]
[1772635044249,15.44736531,90.36,90.313,4.13020946]
[1772635044459,15.44736531,90.35,90.256,15.20980527]
[1772635044646,15.44736531,90.34,90.257,4.13020946]
[1772635044847,1.05621437,90.315,90.259,4.13020946]
[1772635045367,1.05621437,90.315,90.265,4.13020946]
[1772635045746,15.26604629,90.357,90.282,4.13020946]
[1772635045954,15.44736531,90.35,90.286,4.13020946]
[1772635046155,4.19879928,90.356,90.287,0.28432314]
[1772635046355,4.19879928,90.349,90.287,4.4145326]
[1772635046560,15.44736531,90.34,90.287,4.4145326]
[1772635046768,15.44736531,90.32,90.27,11.07787747]
[1772635046974,15.44736531,90.31,90.224,4.13020946]
[1772635047271,15.44736531,90.31,90.223,216.1311417]
[1772635047272,15.44736531,90.31,90.233,4.13020946]
[1772635047669,0.28432314,90.326,90.233,4.13020946]
[1772635047670,15.44736531,90.3,90.233,4.13020946]
[1772635047870,11.07431975,90.299,90.238,4.13020946]
[1772635048167,15.44736531,90.28,90.234,38.78803997]
[1772635048360,11.07356,90.306,90.241,4.13020946]
[1772635048666,11.07356,90.306,90.234,38.78803997]
[1772635048667,15.44736531,90.3,90.253,0.28432314]
[1772635048847,15.44736531,90.3,90.256,4.13020946]
[1772635049044,4.19879928,90.289,90.235,4.13020946]
[1772635049470,4.19879928,90.289,90.189,44.35109826]
[1772635049471,4.19879928,90.249,90.175,4.13020946]
[1772635049654,0.28432314,90.289,90.175,4.13020946]
[1772635049655,15.44736531,90.23,90.175,4.13020946]
[1772635049857,15.44736531,90.22,90.176,11.08942512]
[1772635050170,11.08291125,90.229,90.117,44.38630406]
[1772635050171,15.44736531,90.19,90.147,11.09299255]
[1772635050373,3.69383402,90.226,90.132,27.73698154]
[1772635050374,19.64616459,90.18,90.132,27.73698154]
[1772635050546,15.44736531,90.17,90.122,11.09606977]
[1772635050864,15.44736531,90.16,90.122,11.09606977]
[1772635051061,3.69383402,90.167,90.11,11.09754744]
[1772635051268,3.69383402,90.167,90.104,4.13020946]
[1772635051269,15.44736531,90.15,90.104,42.97420032]
[1772635051471,15.44736531,90.15,90.059,44.41491567]
[1772635051472,0.28432314,90.138,90.062,4.13020946]
[1772635051648,0.28432314,90.138,89.938,8.89405876]
[1772635051649,0.28432314,90.206,90.064,4.13020946]
[1772635051852,4.19879928,90.159,90.077,4.82477569]
[1772635052050,4.19879928,90.159,90.078,4.13020946]
[1772635052257,11.09147658,90.16,90.065,272.02575914]
[1772635052258,4.19879928,90.126,90.065,11.10309221]
[1772635052454,4.19879928,90.126,90.052,27.76160038]
[1772635052455,15.44736531,90.1,90.052,27.76160038]
[1772635052654,15.44736531,90.08,90.039,11.10629838]
[1772635052972,15.44736531,90.08,90.04,4.13020946]
[1772635053172,271.7392139,90.16,90.017,4.13020946]
[1772635053173,19.64616459,90.07,90.017,4.13020946]
[1772635053774,26.54865539,90.08,90.018,38.88111266]
[1772635053948,0.14216157,90.124,90.022,4.13020946]
[1772635054148,15.44736531,90.09,90.022,4.13020946]
[1772635054770,15.44736531,90.11,90.035,0.14216157]
[1772635054971,15.44736531,90.11,90.044,4.13020946]
[1772635055275,15.44736531,90.11,90.018,261.05889931]
[1772635055276,4.19879928,90.079,90.03,4.13020946]
[1772635055465,4.82477569,90.133,90.03,4.13020946]
[1772635055466,4.19879928,90.095,90.03,4.13020946]
[1772635055668,15.44736531,90.1,90.034,4.13020946]
[1772635055861,15.44736531,90.11,90.056,4.13020946]
[1772635056178,15.44736531,90.12,90.062,4.4145326]
[1772635056353,44.37096401,90.15,90.062,4.4145326]
[1772635056354,11.0920082,90.155,90.062,4.4145326]
[1772635056548,15.44736531,90.13,90.062,4.4145326]
[1772635056772,15.44736531,90.14,90.067,4.13020946]
[1772635056974,44.36185995,90.168,90.043,272.09222257]
[1772635056975,15.44736531,90.16,90.084,0.28432314]
[1772635057282,15.44736531,90.16,90.108,0.28432314]
[1772635057478,15.44736531,90.18,90.126,0.28432314]
[1772635057772,15.44736531,90.18,90.094,3.69383402]
[1772635057773,15.44736531,90.16,90.104,0.28432314]
[1772635058083,15.44736531,90.16,90.095,44.39742758]
[1772635058084,15.44736531,90.13,90.093,11.09954965]
[1772635058261,15.44736531,90.11,90.077,11.10161306]
[1772635058570,4.19879928,90.168,90.078,4.13020946]
[1772635058769,38.81600105,90.169,90.077,55.50806531]
[1772635058770,15.44736531,90.14,90.08,4.13020946]
[1772635058957,4.19879928,90.165,90.097,4.4145326]
[1772635058958,15.44736531,90.16,90.097,4.4145326]
[1772635059162,15.44736531,90.15,90.097,4.4145326]
[1772635059572,4.19879928,90.165,90.097,4.4145326]
[1772635059801,15.44736531,90.16,90.097,4.4145326]
[1772635059967,15.44736531,90.14,90.089,11.10006105]
[1772635060276,15.44736531,90.15,90.091,0.14216157]
[1772635060452,4.19879928,90.165,90.096,0.28432314]
[1772635060655,4.19879928,90.165,90.113,4.13020946]
[1772635060867,4.19879928,90.165,90.12,4.13020946]
[1772635061077,4.19879928,90.165,90.089,216.45254578]
[1772635061078,15.44736531,90.19,90.137,0.28432314]
[1772635061575,15.44736531,90.19,90.137,4.4145326]
[1772635061961,11.08782667,90.189,90.138,38.82935054]
[1772635062162,15.44736531,90.18,90.138,38.82935054]
[1772635062469,15.44736531,90.18,90.107,44.39156753]
[1772635062470,15.44736531,90.15,90.106,11.09804008]
[1772635062658,15.44736531,90.14,90.106,11.09804008]
[1772635062863,4.19879928,90.159,90.106,11.09804008]
[1772635063064,15.44736531,90.14,90.106,11.09804008]
[1772635063277,4.19879928,90.159,90.106,11.09804008]
[1772635063278,15.44736531,90.13,90.106,11.09804008]
[1772635063571,4.19879928,90.188,90.107,4.4145326]
[1772635063776,15.44736531,90.15,90.107,4.13020946]
[1772635063979,4.19879928,90.159,90.109,4.13020946]
[1772635063980,15.29041622,90.159,90.109,4.13020946]
[1772635064363,15.44736531,90.16,90.109,4.13020946]
[1772635064563,15.44736531,90.19,90.118,0.28432314]
[1772635064791,19.64616459,90.22,90.14,0.28432314]
[1772635065080,38.79018939,90.229,90.168,0.28432314]
[1772635065266,15.44736531,90.21,90.15,4.13020946]
[1772635065658,4.19879928,90.199,90.15,4.13020946]
[1772635066156,15.44736531,90.22,90.158,4.13020946]
[1772635066477,15.44736531,90.2,90.152,4.13020946]
[1772635066662,15.44736531,90.2,90.102,44.3940181]
[1772635066663,4.19879928,90.189,90.139,11.09397707]
[1772635066976,4.19879928,90.219,90.14,4.13020946]
[1772635067184,15.44736531,90.2,90.14,4.13020946]
[1772635067479,15.44736531,90.21,90.148,4.13020946]
[1772635067787,15.44736531,90.22,90.168,4.13020946]
[1772635068075,11.08315692,90.227,90.179,11.08905621]
[1772635068255,0.1,90.23,90.18,4.13020946]
[1772635068662,0.1,90.23,90.188,4.12465217]
[1772635068875,0.1,90.23,90.179,39.09601987]
[1772635068876,0.1,90.23,90.192,4.12465217]
[1772635069079,26.52658684,90.26,90.208,4.12465217]
[1772635069266,15.44736531,90.26,90.208,4.12465217]
[1772635069475,15.44736531,90.27,90.208,4.12465217]
[1772635069776,15.44736531,90.29,90.226,4.12465217]
[1772635069962,44.26860596,90.358,90.226,4.12465217]
[1772635069963,15.44736531,90.31,90.239,4.12465217]
[1772635070161,15.44736531,90.29,90.244,4.12465217]
[1772635070374,15.44736531,90.28,90.237,0.28432314]
[1772635070570,15.44736531,90.27,90.236,11.0820515]
[1772635071102,15.44736531,90.28,90.238,4.12465217]
[1772635071299,15.44736531,90.27,90.236,11.0820515]
[1772635071503,127.3250664,90.32,90.222,11.08377114]
[1772635071504,15.44736531,90.25,90.222,11.08377114]
[1772635071694,15.44736531,90.23,90.187,38.80810563]
[1772635071887,15.44736531,90.22,90.171,38.81514011]
[1772635072082,15.44736531,90.21,90.171,38.81514011]
[1772635072289,15.44736531,90.2,90.158,27.72889387]
[1772635072587,15.44736531,90.21,90.159,4.12465217]
[1772635072789,15.44736531,90.23,90.159,4.12465217]
[1772635072990,15.44736531,90.23,90.166,0.14216157]
[1772635073202,15.44736531,90.23,90.179,4.12465217]
[1772635073395,15.44736531,90.22,90.179,4.12465217]
[1772635073601,15.44736531,90.23,90.179,4.12465217]
[1772635074000,4.06493236,90.237,90.184,0.28432314]
[1772635074200,15.44736531,90.24,90.188,4.26681374]
[1772635074708,4.06493236,90.292,90.203,4.12465217]
[1772635074905,15.44736531,90.28,90.219,4.12465217]
[1772635075091,4.06493236,90.292,90.235,4.12465217]
[1772635075303,15.44736531,90.31,90.258,0.28432314]
[1772635075505,15.44736531,90.3,90.257,4.12465217]
[1772635075804,4.06493236,90.289,90.227,0.28432314]
[1772635076004,4.06493236,90.289,90.216,0.28432314]
[1772635076005,15.44736531,90.28,90.233,0.28432314]
[1772635076198,15.44736531,90.29,90.238,4.12465217]
[1772635076398,11.07391284,90.303,90.239,4.40897531]
[1772635076716,15.44736531,90.28,90.239,4.12465217]
[1772635077417,15.44736531,90.29,90.239,4.12465217]
[1772635077921,4.06493236,90.299,90.243,4.12465217]
[1772635078225,15.44736531,90.28,90.247,11.08070074]
[1772635078420,4.06493236,90.297,90.248,0.28432314]
[1772635078591,0.97562975,90.315,90.248,0.28432314]
[1772635078592,15.44736531,90.31,90.255,4.12465217]
[1772635078787,15.44736531,90.3,90.255,4.12465217]
[1772635079108,15.44736531,90.31,90.268,0.28432314]
[1772635079305,15.44736531,90.31,90.267,4.12465217]
[1772635079504,11.07248045,90.314,90.267,4.12465217]
[1772635079808,0.97562975,90.315,90.278,4.12465217]
[1772635080197,4.06493236,90.341,90.28,4.40897531]
[1772635080398,44.25363843,90.389,90.28,4.40897531]
[1772635080399,15.44736531,90.36,90.283,4.40897531]
[1772635080604,15.44736531,90.33,90.283,4.40897531]
[1772635080795,15.44736531,90.31,90.279,11.07677311]
[1772635080999,15.44736531,90.3,90.257,0.28432314]
[1772635081500,4.06493236,90.336,90.264,4.12465217]
[1772635081706,15.44736531,90.31,90.268,4.12465217]
[1772635082010,15.44736531,90.31,90.259,0.28432314]
[1772635082011,0.14216157,90.351,90.255,27.69904914]
[1772635082194,0.14216157,90.332,90.256,4.40897531]
[1772635082433,3.69383402,90.348,90.256,4.40897531]
[1772635082434,15.44736531,90.34,90.265,4.12465217]
[1772635082647,15.44736531,90.32,90.278,0.28432314]
[1772635082853,4.06493236,90.319,90.261,4.12465217]
[1772635083037,4.06493236,90.299,90.255,0.14216157]
[1772635083447,4.06493236,90.299,90.255,0.28432314]
[1772635083955,15.44736531,90.28,90.247,11.08061484]
[1772635084131,4.06493236,90.322,90.24,4.26681374]
[1772635084335,15.44736531,90.31,90.24,4.26681374]
[1772635084533,42.81475244,90.323,90.242,4.12465217]
[1772635084534,4.06493236,90.29,90.242,4.12465217]
[1772635084740,15.44736531,90.29,90.248,0.28432314]
[1772635085055,11.07137716,90.323,90.257,4.12465217]
[1772635085253,11.07137716,90.323,90.23,4.82477569]
[1772635085254,15.44736531,90.34,90.27,4.40897531]
[1772635085445,15.44736531,90.34,90.273,4.82477569]
[1772635085641,15.44736531,90.34,90.272,0.28432314]
[1772635085642,15.13186266,90.36,90.29,4.40897531]
[1772635085952,19.51229767,90.34,90.29,4.40897531]
[1772635086265,15.44736531,90.33,90.302,0.28432314]
[1772635086460,15.44736531,90.35,90.302,4.40897531]
[1772635086646,6.88039651,90.375,90.302,4.40897531]
[1772635086647,15.44736531,90.36,90.302,4.40897531]
[1772635086955,4.06493236,90.402,90.314,0.28432314]
[1772635087261,15.44736531,90.37,90.325,0.28432314]
[1772635087556,4.06493236,90.401,90.336,0.14216157]
[1772635087754,4.06493236,90.389,90.336,0.28432314]
[1772635087936,15.44736531,90.38,90.336,0.28432314]
[1772635088136,3.69383402,90.414,90.338,4.40897531]
[1772635088137,15.44736531,90.4,90.338,4.40897531]
[1772635088337,15.44736531,90.38,90.338,4.40897531]
[1772635088544,4.06493236,90.389,90.338,4.40897531]
[1772635088745,15.44736531,90.4,90.338,4.40897531]
[1772635088946,11.06206927,90.399,90.338,4.40897531]
[1772635089148,4.06493236,90.425,90.347,4.12465217]
[1772635089349,44.21620181,90.465,90.338,0.28432314]
[1772635089350,4.06493236,90.442,90.371,4.12465217]
[1772635089547,15.44736531,90.41,90.359,4.12465217]
[1772635089862,15.44736531,90.41,90.337,38.74381481]
[1772635089863,15.44736531,90.39,90.345,4.12465217]
[1772635090059,15.44736531,90.4,90.345,4.12465217]
[1772635090239,15.44736531,90.41,90.364,0.28432314]
[1772635090560,15.44736531,90.42,90.376,0.28432314]
[1772635090854,15.44736531,90.44,90.385,4.12465217]
[1772635091058,15.44736531,90.44,90.361,3.69383402]
[1772635091059,15.44736531,90.42,90.374,4.40897531]
[1772635091450,15.44736531,90.43,90.374,4.40897531]
[1772635091657,15.44736531,90.43,90.206,62.4]
[1772635091658,4.06493236,90.419,90.359,4.40897531]
[1772635091857,15.44736531,90.44,90.373,4.82477569]
[1772635092156,19.51229767,90.44,90.379,4.40897531]
[1772635092348,15.44736531,90.45,90.381,3.69383402]
[1772635092552,4.06493236,90.458,90.399,4.12465217]
[1772635092751,4.06493236,90.458,90.378,176.32668984]
[1772635092752,15.44736531,90.45,90.404,0.28432314]
[1772635093056,4.06493236,90.439,90.387,0.28432314]
[1772635093246,4.06493236,90.439,90.39,0.28432314]
[1772635093435,44.21153748,90.475,90.39,0.28432314]
[1772635093436,15.44736531,90.46,90.39,4.40897531]
[1772635093754,15.44736531,90.46,90.399,4.12465217]
[1772635093961,27.62827353,90.488,90.422,0.28432314]
[1772635094149,15.44736531,90.46,90.422,11.20141706]
[1772635094341,15.44736531,90.47,90.423,0.14216157]
[1772635094542,4.06493236,90.469,90.423,0.14216157]
[1772635094747,19.51229767,90.43,90.371,4.12465217]
[1772635094943,15.44736531,90.43,90.371,4.12465217]
[1772635095161,38.68300931,90.479,90.361,171.53417953]
[1772635095162,4.06493236,90.453,90.372,4.82477569]
[1772635095338,15.44736531,90.43,90.381,4.12465217]
[1772635095540,15.44736531,90.45,90.393,0.14216157]
[1772635095751,14.41197429,90.512,90.38,3.69383402]
[1772635095752,4.06493236,90.481,90.409,4.12465217]
[1772635095957,15.44736531,90.48,90.428,0.28432314]
[1772635096152,26.49953153,90.48,90.434,11.34211114]
[1772635096463,15.44736531,90.47,90.435,0.28432314]
[1772635096655,15.44736531,90.47,90.407,44.24432935]
[1772635096656,4.06493236,90.475,90.418,4.12465217]
[1772635096954,1.01479624,90.496,90.438,4.12465217]
[1772635097375,4.06493236,90.469,90.42,4.12465217]
[1772635097661,15.44736531,90.45,90.379,4.12465217]
[1772635097841,4.06493236,90.481,90.387,3.69383402]
[1772635098041,15.44736531,90.48,90.4,4.12465217]
[1772635098253,4.07118685,90.459,90.411,4.12465217]
[1772635098663,4.07118685,90.459,90.41,38.71253179]
[1772635098664,15.44736531,90.44,90.41,11.06072337]
[1772635099166,4.07118685,90.459,90.41,38.71253179]
[1772635099668,15.44736531,90.45,90.41,38.71253179]
[1772635099869,4.07118685,90.486,90.423,4.07189802]
[1772635100054,15.44736531,90.47,90.43,0.28432314]
[1772635100366,15.44736531,90.47,90.374,44.26012243]
[1772635100367,15.44736531,90.46,90.414,11.06023403]
[1772635100564,1.01479624,90.496,90.424,4.07189802]
[1772635100859,1.01479624,90.496,90.426,4.82477569]
[1772635101078,12.22325865,90.51,90.431,7.76573204]
[1772635101376,15.39718656,90.5,90.438,4.07189802]
[1772635101547,15.39718656,90.51,90.438,4.07189802]
[1772635101871,15.39718656,90.53,90.453,4.07189802]
[1772635102045,15.39718656,90.53,90.46,4.07189802]
[1772635102244,11.04618409,90.529,90.462,4.07189802]
[1772635102462,15.39718656,90.52,90.462,4.07189802]
[1772635102761,15.39718656,90.52,90.463,0.28432314]
[1772635102961,38.66164432,90.529,90.468,4.0702051]
[1772635103164,11.04564785,90.534,90.482,4.0702051]
[1772635103342,15.39718656,90.54,90.484,4.0702051]
[1772635103545,15.39718656,90.56,90.498,4.0702051]
[1772635103859,11.04395123,90.548,90.507,0.28432314]
[1772635104051,27.60730768,90.556,90.507,0.28432314]
[1772635104052,11.04472007,90.541,90.507,0.28432314]
[1772635104255,11.04368813,90.55,90.508,38.67061475]
[1772635104458,11.04008655,90.579,90.512,4.35452824]
[1772635104641,38.64030293,90.579,90.512,4.35452824]
[1772635104838,15.39718656,90.57,90.512,4.35452824]
[1772635105039,38.64030293,90.579,90.512,4.35452824]
[1772635105241,4.36149362,90.569,90.512,4.0702051]
[1772635105484,4.36149362,90.559,90.496,11.05021216]
[1772635105775,15.39718656,90.55,90.497,0.14216157]
[1772635105969,15.39718656,90.55,90.502,0.28432314]
[1772635106184,4.36149362,90.559,90.503,0.28432314]
[1772635106464,15.39718656,90.51,90.455,4.0702051]
[1772635107048,4.82477569,90.564,90.454,38.69370065]
[1772635107049,11.04008655,90.579,90.474,3.69383402]
[1772635107343,15.39718656,90.56,90.5,4.0702051]
[1772635107542,15.39718656,90.57,90.508,0.28432314]
[1772635107759,15.39718656,90.56,90.509,4.0702051]
[1772635108466,27.6018682,90.574,90.481,0.14216157]
[1772635108467,4.36149362,90.539,90.481,0.14216157]
[1772635108765,15.39718656,90.53,90.48,42.75278688]
[1772635108950,38.64883666,90.559,90.463,11.05424317]
[1772635108951,15.39718656,90.51,90.463,11.05424317]
[1772635109152,15.39718656,90.52,90.464,4.0702051]
[1772635109367,15.39718656,90.53,90.467,4.21236667]
[1772635109559,4.36149362,90.54,90.467,4.21236667]
[1772635109560,15.39718656,90.52,90.467,4.21236667]
[1772635109866,4.36149362,90.54,90.469,4.0702051]
[1772635110066,4.36149362,90.54,90.466,3.69383402]
[1772635110067,15.39718656,90.55,90.476,4.0702051]
[1772635110246,11.04252476,90.559,90.494,4.0702051]
[1772635110448,15.39718656,90.55,90.496,4.0702051]
[1772635110658,38.64883666,90.559,90.434,44.23077476]
[1772635110659,15.39718656,90.51,90.434,44.23077476]
[1772635110869,15.39718656,90.51,90.446,4.0702051]
[1772635111050,15.39718656,90.53,90.45,4.0702051]
[1772635111250,15.39718656,90.53,90.436,138.21929319]
[1772635111251,15.39718656,90.53,90.468,3.69383402]
[1772635111451,38.64883666,90.559,90.479,4.0702051]
[1772635111672,15.39718656,90.57,90.498,4.0702051]
[1772635111857,11.040696,90.574,90.508,4.0702051]
[1772635112170,11.040696,90.574,90.489,3.69383402]
[1772635112171,15.39718656,90.57,90.51,4.0702051]
[1772635112469,11.040696,90.574,90.521,3.69383402]
[1772635112674,15.39718656,90.56,90.518,11.04752645]
[1772635112879,4.36149362,90.569,90.518,15.11773155]
[1772635113171,15.39718656,90.57,90.519,4.0702051]
[1772635113382,38.64243601,90.574,90.519,4.0702051]
[1772635113383,11.040696,90.574,90.519,4.0702051]
[1772635113558,38.64243601,90.574,90.519,4.0702051]
[1772635113758,19.75868018,90.57,90.519,4.0702051]
[1772635114270,19.75868018,90.56,90.505,0.28432314]
[1772635114567,11.0426467,90.558,90.507,4.35452824]
[1772635114782,4.36149362,90.575,90.51,4.35452824]
[1772635114952,15.39718656,90.57,90.51,4.35452824]
[1772635115267,0.1,90.58,90.51,4.35452824]
[1772635115648,0.1,90.58,90.507,4.82477569]
[1772635115856,15.39718656,90.57,90.506,38.67146928]
[1772635116088,4.36149362,90.569,90.506,38.67146928]
[1772635116570,11.04019577,90.579,90.5,4.82477569]
[1772635116762,0.1,90.58,90.5,4.82477569]
[1772635117070,0.1,90.58,90.499,44.19924676]
[1772635117071,0.1,90.58,90.502,4.82477569]